lending/lending_fUSD_20241229
["ID","MTS","AMOUNT","RATE_DAILY","PERIOD"]
[346960679,1735430404131,158.0,0.00013,30]
[346960680,1735430404500,158.0,0.000148,30]
[346960681,1735430408401,153.47,0.000154,31]
[346960682,1735430408457,153.47,0.000154,31]
[346960683,1735430408519,153.47,0.000154,31]
[346960684,1735430408583,153.47,0.000154,31]
[346960685,1735430408706,153.47,0.000154,31]
[346960686,1735430409022,153.47,0.000154,31]
[346960687,1735430431878,150.0,0.00018406,120]
[346960689,1735430670744,150.0,0.00017907,120]
[346960690,1735430703793,158.0,0.00013,30]
[346960700,1735430790766,150.0,0.00018164,120]
[346960721,1735431003488,158.0,0.00013,30]
[346960722,1735431009693,153.77,0.000154,31]
[346960727,1735431031587,-670.67,0.00010029,2]
[346960728,1735431031597,-186.24,0.00010137,2]
[346960729,1735431031607,-1003.97778191,0.0001145,2]
[346960730,1735431031639,-27.50221809,0.0001145,2]
[346960731,1735431031648,-238.89188954,0.0001145,2]
[346960732,1735431031660,-3294.95397143,0.0001145,2]
[346960733,1735431031692,-3671.52032887,0.0001145,2]
[346960734,1735431031712,-3400.0,0.0001145,2]
[346960735,1735431031729,-4973.263022,0.0001145,2]
[346960736,1735431031742,-1125.42078816,0.0001145,2]
[346960737,1735431031755,-315.2505245,0.00011539,2]
[346960738,1735431031772,-49.4594755,0.00011539,2]
[346960739,1735431031785,-472.78,0.00011584,2]
[346960740,1735431031798,-500.0,0.00011589,2]
[346960741,1735431031811,-150.0,0.00011604,2]
[346960742,1735431031825,-164.89,0.00011639,2]
[346960743,1735431031837,-233.64127874,0.00011688,2]
[346960744,1735431031849,-150.0,0.00011688,2]
[346960745,1735431031860,-150.0,0.00011688,2]
[346960746,1735431031871,-250.0,0.00011697,2]
[346960747,1735431031885,-500.0,0.00011742,2]
[346960748,1735431031899,-250.0,0.0001175,2]
[346960749,1735431031912,-129.22924576,0.00011809,2]
[346960750,1735431031942,-1053.44075424,0.00011809,2]
[346960751,1735431031956,-250.0,0.00011981,2]
[346960754,1735431031969,-300.0,0.00011994,2]
[346960756,1735431031981,-3375.41371022,0.00011995,2]
[346960852,1735431037538,-1340.01178555,0.00011995,2]
[346960853,1735431037552,-98.57450423,0.00011995,2]
[346960854,1735431037564,-338.64675926,0.00012,2]
[346960855,1735431037578,-111.35324074,0.00012,2]
[346960856,1735431037591,-300.0,0.00012,4]
[346960857,1735431037604,-262.00676926,0.000121,4]
[346960858,1735431037619,-337.99323074,0.000121,4]
[346960859,1735431037631,-376.72114711,0.000122,4]
[346960860,1735431037649,-623.27885289,0.000122,4]
[346960861,1735431037661,-670.67,0.00012293,2]
[346960862,1735431037672,-1300.0,0.000123,4]
[346960863,1735431037685,-339.001,0.0001235,2]
[346960864,1735431037696,-1700.0,0.000124,4]
[346960865,1735431037708,-300.0,0.000125,4]
[346960866,1735431037718,-500.0,0.00012548,2]
[346960867,1735431037728,-736.02,0.00012548,2]
[346960868,1735431037737,-300.0,0.000126,4]
[346960869,1735431037747,-300.0,0.000127,4]
[346960870,1735431037757,-200.0,0.00012755,2]
[346960872,1735431037766,-300.0,0.000128,4]
[346960874,1735431037776,-2317.57602,0.0001287,2]
[346960876,1735431037785,-3224.05784607,0.000129,2]
[346960879,1735431037796,-4342.64861769,0.000129,2]
[346960892,1735431038083,-4425.35333624,0.000129,2]
[346960893,1735431038109,-378.54831376,0.000129,2]
[346960894,1735431038125,-658.82488624,0.000129,2]
[346960895,1735431038134,-6778.5253,0.000129,2]
[346960896,1735431038144,-3444.4591,0.000129,2]
[346960897,1735431038153,-741.8608974,0.000129,2]
[346960898,1735431038163,-1951.547,0.000129,2]
[346960899,1735431038172,-176.276,0.000129,2]
[346960900,1735431038181,-1358.24684894,0.000129,2]
[346960901,1735431038191,-700.0,0.000129,4]
[346960902,1735431038201,-5000.0,0.000129,2]
[346960903,1735431038211,-165.3,0.00012971,2]
[346960904,1735431038220,-500.0,0.00012973,2]
[346960905,1735431038230,-1067.1164204,0.00012996,2]
[346960906,1735431038240,-276.4232,0.00013,2]
[346960907,1735431038249,-27691.520347,0.00013,2]
[346960908,1735431038287,-301.91055826,0.00013,2]
[346960909,1735431038298,-550.473753,0.00013,2]
[346960910,1735431038311,-15845.967324,0.00013,2]
[346960911,1735431038329,-4994.44688747,0.00013,2]
[346960912,1735431038341,-30780.19508264,0.00013,2]
[346960919,1735431039590,-354.65628871,0.00013,2]
[346960920,1735431039695,-394.07628802,0.00013,2]
[346960921,1735431039707,-563.81,0.00013,2]
[346960943,1735431042576,-316.259541,0.00013,2]
[346960946,1735431042631,-751.21633199,0.00013,2]
[346960947,1735431042737,-250.38621899,0.00013,2]
[346960948,1735431042749,-1533.26707635,0.00013,2]
[346960960,1735431045560,-177536.63300224,0.00013,2]
[346960961,1735431045614,-30970.85105002,0.00013,2]
[346960962,1735431045624,-2893.20685578,0.00013,2]
[346960963,1735431045824,-1625.40126439,0.00013,2]
[346961686,1735431133014,-191.86,0.00010156,2]
[346961687,1735431146507,-177.94,0.00010119,2]
[346961689,1735431235901,-200.0,9.867e-05,2]
[346961690,1735431235924,-36.37,0.00010137,2]
[346961691,1735431240399,-200.0,0.00010137,2]
[346961692,1735431303710,159.0,0.00010137,30]
[346961693,1735431305142,-818.55,0.00010625,2]
[346961694,1735431346157,-269.64940049,0.00010572,2]
[346961695,1735431602984,159.86829878,0.00010137,30]
[346961696,1735431604592,-25000.0,0.00013,4]
[346961727,1735432201218,-777.62,0.00010001,2]
[346961749,1735432231783,-1312.61,0.00011943,2]
[346961751,1735432231793,-1000.0,0.00011951,2]
[346961753,1735432231803,-450.0,0.00012,2]
[346961755,1735432231812,-250.0,0.00012001,2]
[346961756,1735432231822,-549.79,0.0001205,2]
[346961757,1735432231831,-427.41,0.00012096,2]
[346961758,1735432231840,-250.0,0.00012151,2]
[346961759,1735432231850,-203.3150481,0.00012174,2]
[346961760,1735432231860,-1060.5,0.00012223,2]
[346961761,1735432231869,-652.92281435,0.00012265,2]
[346961765,1735432232157,-124.69718565,0.00012265,2]
[346961766,1735432232168,-165.0,0.00012274,2]
[346961767,1735432232178,-324.51,0.0001235,2]
[346961768,1735432232188,-358.44516753,0.0001242,2]
[346961769,1735432232222,-41.55483247,0.0001242,2]
[346961771,1735432232232,-200.0,0.00012444,2]
[346961773,1735432232241,-94.94578753,0.00012455,2]
[346961775,1735432232257,-155.05421247,0.00012455,2]
[346961777,1735432232265,-200.0,0.00012457,2]
[346961779,1735432232274,-144.94578753,0.00012465,2]
[346961781,1735432232286,-55.05421247,0.00012465,2]
[346961783,1735432232296,-300.0,0.00012599,2]
[346961785,1735432232305,-224.30931947,0.000126,2]
[346961802,1735432237642,-753.84068053,0.000126,2]
[346961803,1735432237651,-258.02753599,0.000126,2]
[346961804,1735432237662,-347.04,0.000126,2]
[346961805,1735432237701,-373.08246401,0.000126,2]
[346961806,1735432237710,-978.15,0.000126,2]
[346961807,1735432237719,-656.31,0.000126,2]
[346961808,1735432237729,-978.15,0.000127,2]
[346961809,1735432237738,-150.0,0.000127,2]
[346961810,1735432237746,-436.52,0.000127,2]
[346961811,1735432237755,-150.0,0.000127,2]
[346961812,1735432237765,-1931.31335,0.0001287,2]
[346961813,1735432237775,-2500.0,0.00012899,2]
[346961814,1735432237783,-3121.1731,0.000129,2]
[346961815,1735432237792,-153.80430466,0.00012973,2]
[346961816,1735432237801,-507.31770396,0.00012973,2]
[346961817,1735432237811,-363.32062561,0.00012999,2]
[346961818,1735432237819,-176.276,0.00012999,2]
[346961819,1735432237828,-2041.794,0.00012999,2]
[346961820,1735432237837,-161.78763961,0.00012999,2]
[346961821,1735432237847,-55111.71142357,0.00012999,2]
[346961822,1735432237859,-10979.99819,0.00012999,2]
[346961824,1735432239790,-2038.81374203,0.00012999,2]
[346961825,1735432239802,-1657.3904998,0.00012999,2]
[346961826,1735432239846,-1464.387994,0.00012999,2]
[346961827,1735432239958,-1637.8787113,0.00012999,2]
[346961828,1735432239969,-728.86710491,0.00012999,2]
[346961829,1735432239980,-2501.51888399,0.00012999,2]
[346961842,1735432242796,-5221.515814,0.00012999,2]
[346961843,1735432242863,-467.74999695,0.00012999,2]
[346961853,1735432245812,-303.39286056,0.000119,2]
[346961854,1735432245822,-20.97712944,0.00012999,2]
[346961855,1735432245833,-390.02,0.00012999,2]
[346961856,1735432245871,-364817.86860789,0.00012999,2]
[346961857,1735432245880,-382.43,0.00012999,2]
[346961858,1735432245890,-82662.68668921,0.00013,2]
[346961859,1735432245901,-370.58734935,0.00013,2]
[346962845,1735432400366,-172.4,0.00010137,2]
[346962847,1735433052183,738.05,9.6e-05,2]
[346962872,1735433399557,-186.24,0.00010137,2]
[346962875,1735433432059,-708.70949298,0.00011375,2]
[346962876,1735433432117,-613.47050702,0.00011375,2]
[346962877,1735433432126,-400.0,0.00011399,2]
[346962878,1735433432135,-28.28996375,0.00011404,2]
[346962879,1735433432149,-174.91003625,0.00011404,2]
[346962880,1735433432159,-666.06194912,0.00011438,2]
[346962881,1735433432180,-333.93805088,0.00011438,2]
[346962882,1735433432189,-250.0,0.00011456,2]
[346962883,1735433432198,-241.26,0.00011474,2]
[346962884,1735433432208,-5252.14,0.00011475,2]
[346962885,1735433432217,-570.06,0.00011496,2]
[346962886,1735433432226,-653.46,0.0001161,2]
[346962887,1735433432236,-250.0,0.00011677,2]
[346962888,1735433432246,-150.0,0.00011863,2]
[346962889,1735433432255,-738.05,0.00011864,2]
[346962890,1735433432265,-167.35,0.00011877,2]
[346962891,1735433432275,-153.13,0.00011961,2]
[346962892,1735433432284,-153.13,0.00011971,2]
[346962893,1735433432294,-153.13,0.00011981,2]
[346962894,1735433432304,-153.13,0.00011991,2]
[346962895,1735433432313,-600.0,0.00012,4]
[346962896,1735433432323,-153.13,0.00012001,2]
[346962897,1735433432333,-153.13,0.00012011,2]
[346962898,1735433432342,-153.13,0.00012021,2]
[346962899,1735433432351,-250.0,0.00012052,2]
[346962900,1735433432361,-165.27,0.00012096,2]
[346962901,1735433432370,-1014.06882659,0.000121,4]
[346962902,1735433432382,-185.93117341,0.000121,4]
[346962903,1735433432391,-435.5,0.00012192,2]
[346962904,1735433432400,-182.72,0.00012192,2]
[346962905,1735433432409,-182.72,0.00012192,2]
[346962906,1735433432418,-182.72,0.00012192,2]
[346962907,1735433432427,-182.41,0.00012192,2]
[346962908,1735433432437,-182.72,0.000122,2]
[346962909,1735433432446,-1900.0,0.000122,4]
[346962910,1735433432455,-500.0,0.00012247,2]
[346962912,1735433432464,-1003.22945008,0.000123,4]
[346962914,1735433432475,-397.92779334,0.000123,4]
[346962917,1735433432494,-541.12784328,0.000123,4]
[346962919,1735433432505,-557.7149133,0.000123,4]
[346962921,1735433432514,-311.377,0.0001235,2]
[346962923,1735433432524,-3200.0,0.000124,4]
[346962925,1735433432536,-600.0,0.000125,4]
[346962927,1735433432544,-600.0,0.000126,4]
[346962929,1735433432554,-452.0,0.00012658,2]
[346962930,1735433432564,-436.61,0.00012678,2]
[346962932,1735433432573,-247.77,0.00012678,2]
[346962934,1735433432583,-365.36,0.00012678,2]
[346962936,1735433432592,-150.0,0.00012678,2]
[346962938,1735433432601,-242.01,0.00012678,2]
[346962940,1735433432609,-354.78,0.00012678,2]
[346962942,1735433432618,-436.61,0.00012678,2]
[346962944,1735433432627,-150.0,0.00012678,2]
[346962946,1735433432636,-436.61,0.00012678,2]
[346962948,1735433432646,-150.0,0.00012678,2]
[346962951,1735433432655,-150.0,0.00012678,2]
[346962953,1735433432664,-150.0,0.00012678,2]
[346962955,1735433432673,-150.0,0.00012678,2]
[346962957,1735433432683,-600.0,0.000127,4]
[346962959,1735433432692,-600.0,0.000128,4]
[346962961,1735433432701,-1000.0,0.00012868,2]
[346962963,1735433432711,-5365.2119,0.000129,2]
[346962965,1735433432720,-500.0,0.000129,2]
[346962966,1735433432729,-164.85797719,0.000129,2]
[346962967,1735433432738,-1000.0,0.000129,4]
[346962969,1735433432748,-1285.73559725,0.000129,2]
[346962971,1735433432757,-5000.0,0.000129,2]
[346962973,1735433432766,-1633.436,0.00012958,2]
[346962975,1735433432775,-877.0824387,0.00012996,2]
[346962976,1735433432784,-948.5117589,0.00012996,2]
[346962978,1735433432794,-500.0,0.00012999,2]
[346962980,1735433432803,-500.0,0.00012999,2]
[346962982,1735433432812,-500.0,0.00012999,2]
[346962984,1735433432822,-427.6254778,0.00012999,2]
[346962986,1735433432831,-533.0,0.00013,2]
[346962988,1735433432841,-161.78763961,0.00013,2]
[346962990,1735433432850,-15928.82644849,0.00013,2]
[346962993,1735433432862,-8713.24699589,0.00013,2]
[346962996,1735433432885,-13260.67809141,0.00013,2]
[346962998,1735433432896,-8849.11790945,0.00013,2]
[346963000,1735433432907,-6023.72737881,0.00013,2]
[346963002,1735433432920,-6674.23832769,0.00013,2]
[346963005,1735433432932,-2844.48352013,0.00013,2]
[346963007,1735433432942,-7234.04748214,0.00013,2]
[346963009,1735433432957,-519.86839141,0.00013,2]
[346963011,1735433432968,-518.48714087,0.00013,2]
[346963014,1735433432979,-10602.0,0.00013,2]
[346963016,1735433432990,-538.88,0.00013,2]
[346963018,1735433433005,-1147.33748482,0.00013,2]
[346963020,1735433433016,-4616.7,0.00013,2]
[346963023,1735433433031,-4896.12585452,0.00013,2]
[346963025,1735433433042,-2745.66907417,0.00013,2]
[346963027,1735433433054,-5023.54568336,0.00013,2]
[346963030,1735433433073,-1431.28891349,0.00013,2]
[346963033,1735433433084,-500.0,0.00013,2]
[346963035,1735433433096,-1274.4299985,0.00013,2]
[346963037,1735433433107,-314.370006,0.00013,2]
[346963039,1735433437895,-33399.62048007,0.00013,2]
[346963040,1735433438107,-605.91363364,0.00013,2]
[346963242,1735433440196,-453.005,0.00013,2]
[346963551,1735433443025,-2500.0,0.000129,2]
[346963552,1735433443034,-790.00020067,0.00013,2]
[346963553,1735433443045,-468.55811308,0.00013,2]
[346963554,1735433443056,-4275.5011,0.00013,2]
[346963555,1735433443079,-7025.56268251,0.00013,2]
[346963556,1735433443091,-797.586,0.00013,2]
[346963561,1735433443138,-301.62258698,0.00013,2]
[346963574,1735433443246,-988.29915199,0.00013,2]
[346963576,1735433443258,-40364.92389123,0.00013,2]
[346963865,1735433446030,-1032.14028978,0.00013,2]
[346964003,1735433831132,-5000.0,0.00013,4]
[346964004,1735433836134,-5000.0,0.00013,4]
[346964005,1735433839359,-5000.0,0.00013,4]
[346964006,1735433841477,-5000.0,0.00013,4]
[346964007,1735433842793,-5000.0,0.00013,4]
[346964008,1735433844396,-5000.0,0.00013,4]
[346964009,1735433849055,-5000.0,0.00013,4]
[346964010,1735433850071,-5000.0,0.00013,4]
[346964011,1735433874627,-538.0,0.00013,4]
[346964012,1735433913405,1500.0,0.0002,120]
[346964013,1735433929228,1000.0,0.0002,120]
[346964014,1735433957622,500.0,0.0002,120]
[346964015,1735433972269,-791.74,9.94e-05,2]
[346964018,1735434283163,61.95,9.282e-05,2]
[346964019,1735434283187,121.71,9.282e-05,2]
[346964047,1735434490972,-242.81,0.00010137,2]
[346964064,1735434632228,-522.76,0.00011523,2]
[346964065,1735434632237,-7973.0,0.00011614,2]
[346964066,1735434632247,-250.0,0.00011614,2]
[346964067,1735434632256,-10418.38681285,0.00011673,2]
[346964068,1735434632290,-4699.69194116,0.00011673,2]
[346964069,1735434632353,-23.74124599,0.00011673,2]
[346964070,1735434632363,-400.0,0.00011711,2]
[346964071,1735434632372,-250.0,0.00011757,2]
[346964072,1735434632382,-1000.0,0.00011816,2]
[346964073,1735434632392,-536.57,0.00011885,2]
[346964074,1735434632403,-450.0,0.00012,2]
[346964075,1735434632414,-1582.50949957,0.00012,2]
[346964076,1735434632426,-2118.33454288,0.00012,2]
[346964077,1735434632443,-477.05850748,0.00012,2]
[346964078,1735434632454,-4056.94496994,0.00012,2]
[346964079,1735434632466,-591.70152149,0.00012,2]
[346964080,1735434632477,-2724.49847851,0.00012,2]
[346964081,1735434632505,-722.54233573,0.00012,2]
[346964082,1735434632516,-7771.4364719,0.00012,2]
[346964083,1735434632525,-153.87,0.00012119,2]
[346964084,1735434632534,-153.87,0.00012131,2]
[346964085,1735434632544,-153.87,0.00012143,2]
[346964086,1735434632554,-165.0,0.00012145,2]
[346964087,1735434632564,-153.87,0.00012155,2]
[346964088,1735434632573,-153.87,0.00012168,2]
[346964089,1735434632582,-153.87,0.0001218,2]
[346964090,1735434632593,-791.74,0.00012204,2]
[346964092,1735434632602,-348.6035281,0.00012207,2]
[346964094,1735434632614,-628.7364719,0.00012207,2]
[346964096,1735434632623,-250.0,0.00012298,2]
[346964098,1735434632632,-182.6,0.000123,2]
[346964100,1735434632641,-164.14,0.00012325,2]
[346964102,1735434632651,-326.746,0.0001235,2]
[346964103,1735434632661,-182.72,0.00012378,2]
[346964105,1735434632670,-182.72,0.00012378,2]
[346964107,1735434632680,-372.19,0.00012544,2]
[346964109,1735434632689,-500.0,0.00012575,2]
[346964111,1735434632699,-152.21,0.00012707,2]
[346964114,1735434632708,-151.31,0.00012798,2]
[346964116,1735434632718,-51.10155328,0.0001285,2]
[346964119,1735434632742,-99.84844672,0.0001285,2]
[346964121,1735434632752,-150.46,0.0001285,2]
[346964123,1735434632761,-152.35,0.0001285,2]
[346964125,1735434632771,-63.77085367,0.0001285,2]
[346964127,1735434632782,-88.80914633,0.0001285,2]
[346964129,1735434632792,-151.45,0.0001285,2]
[346964131,1735434632801,-378.31,0.00012857,2]
[346964133,1735434632810,-1581.43085367,0.0001287,2]
[346964221,1735434638078,-527.99694633,0.0001287,2]
[346964222,1735434638087,-252.69981309,0.00012896,2]
[346964223,1735434638122,-124.51018691,0.00012896,2]
[346964224,1735434638131,-567.8474341,0.000129,2]
[346964225,1735434638143,-1932.1525659,0.000129,2]
[346964226,1735434638152,-91.3974341,0.000129,2]
[346964227,1735434638163,-458.44268602,0.000129,2]
[346964228,1735434638174,-1950.15987988,0.000129,2]
[346964229,1735434638184,-522.76,0.00012963,2]
[346964230,1735434638193,-237.97845405,0.00012999,2]
[346964231,1735434638203,-24982.64801052,0.00012999,2]
[346964232,1735434638213,-286.49996773,0.00012999,2]
[346964233,1735434638225,-2191.68978481,0.00012999,2]
[346964234,1735434638236,-362.49999,0.00012999,2]
[346964235,1735434638248,-3338.45242994,0.00012999,2]
[346964236,1735434638259,-7040.0,0.00012999,2]
[346964237,1735434638270,-1454.24614478,0.00012999,2]
[346964238,1735434638281,-343.96367222,0.00012999,2]
[346964239,1735434638291,-372.29,0.00013,2]
[346964240,1735434638300,-376.57,0.00013,2]
[346964241,1735434638310,-370.56,0.00013,2]
[346964242,1735434638319,-38531.08132778,0.00013,2]
[346964243,1735434638345,-18308.55564024,0.00013,2]
[346964244,1735434638356,-281170.35379576,0.00013,2]
[346964245,1735434638368,-832.10495352,0.00013,2]
[346964246,1735434638379,-958.53030431,0.00013,2]
[346964247,1735434638392,-348.23005832,0.00013,2]
[346964248,1735434638456,-58039.99999995,0.00013,2]
[346964250,1735434638468,-19325.37873265,0.00013,2]
[346964252,1735434638479,-55253.81522643,0.00013,2]
[346964428,1735434640214,-320.72535695,0.00013,2]
[346964430,1735434640227,-680.38,0.00013,2]
[346964737,1735434643194,-539.8,0.00013,2]
[346964763,1735434643423,-455.31999994,0.00013,2]
[346964765,1735434643435,-3384.50084801,0.00013,2]
[346964767,1735434643446,-2432.95008,0.00013,2]
[346965074,1735434646447,-4500.57500003,0.00013,2]
[346965079,1735434646486,-1000.0,0.00013,2]
[346965960,1735435021786,-761.33,0.0001008,2]
[346966085,1735435564802,-168.84,0.00010137,2]
[346966086,1735435582703,-200.0,0.00010086,2]
[346966106,1735435715674,-256.2152986,0.000107,2]
[346966125,1735435832534,-152.5043309,0.00011,2]
[346966126,1735435832544,-378.14682386,0.00011439,2]
[346966127,1735435832554,-302.68,0.00011683,2]
[346966128,1735435832563,-249.28,0.00011801,2]
[346966129,1735435832572,-533.68628838,0.00011812,2]
[346966130,1735435832582,-250.0,0.00011812,2]
[346966131,1735435832591,-439.98988857,0.00011817,2]
[346966132,1735435832601,-603.01,0.00011898,2]
[346966134,1735435832610,-439.98988855,0.000119,2]
[346966135,1735435832619,-197.97983155,0.00011917,2]
[346966136,1735435832629,-250.0,0.00011929,2]
[346966137,1735435832639,-1452.04531146,0.00012,2]
[346966138,1735435832648,-450.0,0.00012,2]
[346966139,1735435832659,-172.68,0.00012017,2]
[346966140,1735435832668,-400.0,0.00012025,2]
[346966141,1735435832677,-172.68,0.00012047,2]
[346966142,1735435832686,-422.86666241,0.00012076,2]
[346966149,1735435832996,-44.49333759,0.00012076,2]
[346966151,1735435833005,-172.68,0.00012077,2]
[346966152,1735435833015,-167.35,0.00012111,2]
[346966153,1735435833024,-4.06808097,0.00012158,2]
[346966154,1735435833035,-995.93191903,0.00012158,2]
[346966155,1735435833045,-761.33,0.00012344,2]
[346966156,1735435833054,-300.0,0.00012349,2]
[346966157,1735435833064,-340.91,0.0001235,2]
[346966158,1735435833073,-165.12,0.00012386,2]
[346966159,1735435833082,-250.0,0.00012386,2]
[346966161,1735435833091,-200.0,0.00012452,2]
[346966163,1735435833101,-375.63,0.00012798,2]
[346966165,1735435833111,-178.3082725,0.00012799,2]
[346966167,1735435833120,-497.7160521,0.00012799,2]
[346966169,1735435833131,-1304.61518836,0.00012799,2]
[346966174,1735435833222,-500.0,0.00012798,2]
[346966175,1735435833232,-500.0,0.00012798,2]
[346966176,1735435833241,-500.0,0.00012798,2]
[346966177,1735435833251,-727228.21821231,0.00012799,2]
[346966178,1735435833260,-1000.0,0.000128,2]
[346966179,1735435833270,-197.97983155,0.000128,2]
[346966180,1735435833428,-250200.86214683,0.000128,2]
[346966181,1735435833492,-24016.15898658,0.000128,2]
[346966182,1735435833556,-500.0,0.00012798,2]
[346966183,1735435833566,-500.0,0.00012798,2]
[346966184,1735435833577,-17391.87328312,0.000128,2]
[346966185,1735435833589,-633.91785618,0.000128,2]
[346966186,1735435833600,-1238.04,0.000128,2]
[346966187,1735435833612,-773.83676388,0.000128,2]
[346966188,1735435833623,-686.42423863,0.000128,2]
[346966189,1735435833633,-670.37804133,0.000128,2]
[346966190,1735435833644,-489.79570988,0.000128,2]
[346966199,1735435838453,-168.58699953,0.00012798,2]
[346966200,1735435838463,-646759.39235934,0.000128,2]
[346966201,1735435838474,-380.89086009,0.000128,2]
[346966202,1735435838580,-1262.42531944,0.000128,2]
[346966203,1735435838708,-239484.36385842,0.000128,2]
[346966204,1735435838719,-5462.24845647,0.000128,2]
[346966205,1735435838731,-8940.77294004,0.000128,2]
[346966206,1735435838742,-2895.42788783,0.000128,2]
[346966207,1735435838753,-2006.94220792,0.000128,2]
[346966208,1735435838764,-1398.85672788,0.000128,2]
[346966210,1735435838889,-5110.70886892,0.000128,2]
[346966274,1735435840769,-1277.905,0.000128,2]
[346966275,1735435840780,-257.76772167,0.000128,2]
[346966276,1735435840791,-331142.00135155,0.000128,2]
[346966277,1735435840800,-349.35665033,0.000128,2]
[346966278,1735435840810,-30294.0,0.0001285,2]
[346966279,1735435840819,-152.38,0.0001285,2]
[346966280,1735435840828,-151.95,0.0001285,2]
[346966281,1735435840837,-151.34,0.0001285,2]
[346966282,1735435840846,-152.84,0.0001285,2]
[346966283,1735435840855,-2257.8565,0.0001287,2]
[346966284,1735435840863,-5000.0,0.00012899,2]
[346966285,1735435840873,-1113.43214969,0.00012899,2]
[346966286,1735435840882,-1500.0,0.000129,2]
[346966287,1735435840891,-883.0888,0.000129,2]
[346966289,1735435840900,-50000.0,0.000129,2]
[346966290,1735435840909,-30000.0,0.000129,3]
[346966292,1735435840918,-164.85797719,0.000129,2]
[346966294,1735435840927,-536.0,0.000129,2]
[346966296,1735435840935,-152.803862,0.000129,2]
[346966298,1735435840944,-19473.22388407,0.000129,2]
[346966300,1735435840953,-1113.4321497,0.000129,2]
[346966302,1735435840962,-1306.748,0.00012956,2]
[346966304,1735435840971,-1434.5219925,0.00012996,2]
[346966305,1735435840980,-4660.12491763,0.00012996,2]
[346966306,1735435840990,-405.98875332,0.00012996,2]
[346966307,1735435840999,-500.0,0.00012999,2]
[346966308,1735435841008,-6419.35282278,0.00012999,2]
[346966309,1735435841017,-376.44,0.00012999,2]
[346966310,1735435841027,-372.74,0.00012999,2]
[346966311,1735435841036,-381.61,0.00013,2]
[346966312,1735435841045,-369.39,0.00013,2]
[346966313,1735435841055,-341904.84523721,0.00013,2]
[346966314,1735435841063,-100776.45215132,0.00013,2]
[346966315,1735435841073,-24016.23498516,0.00013,2]
[346966316,1735435841082,-1281977.12141881,0.00013,4]
[346966331,1735435843735,-356.7699245,0.00013,4]
[346966332,1735435843748,-347.06404734,0.00013,4]
[346966337,1735435846552,-251.10073731,0.000127,2]
[346966338,1735435846562,-151.4223584,0.00013,4]
[346966339,1735435846573,-3628.99362848,0.00013,4]
[346966340,1735435846584,-1059.39590425,0.00013,4]
[346966341,1735435846675,-3823.58836779,0.00013,4]
[346966401,1735436295957,-150.0,0.00020261,120]
[346966402,1735436295988,-150.0,0.00020763,120]
[346966561,1735437032166,-429.21021427,0.00010063,2]
[346966562,1735437032178,-376.80978573,0.00010063,2]
[346966564,1735437032187,-215.8,0.00010137,2]
[346966565,1735437032197,-500.0,0.00011425,2]
[346966567,1735437032206,-209.0,0.00011616,2]
[346966569,1735437032215,-250.0,0.00011714,2]
[346966571,1735437032225,-313.65,0.00011737,2]
[346966573,1735437032234,-233.68,0.00011808,2]
[346966575,1735437032243,-400.0,0.00011825,2]
[346966577,1735437032252,-500.0,0.00011918,2]
[346966579,1735437032262,-165.12,0.00011925,2]